[Event "January 9 Late 2024"]
[Site "https://www.chess.com"]
[Date "2024.01.09"]
[Round "2"]
[White "Melamed, Daniel"]
[Black "Mendez Fortes, Eduardo Jesus"]
[Result "0-1"]
[Board "171"]
[TimeControl "180+1"]
[WhiteFideId "3229076"]
[BlackFideId "3502376"]
[WhiteElo "2340"]
[BlackElo "2542"]
[WhiteTeam "AUS"]
[BlackTeam "CUB"]
[WhiteClock "0:00:29"]
[BlackClock "0:01:15"]

1. d4 {[%clk 0:03:00]}  Nf6 {[%clk 0:02:59]} 2. Nf3 {[%clk 0:03:01]}  d5 {[%clk 0:02:59]} 3. Bf4 {[%clk 0:03:01]}  c5 {[%clk 0:02:58]} 4. e3 {[%clk 0:03:01]}  Nc6 {[%clk 0:02:58]} 5. c3 {[%clk 0:03:02]}  Qb6 {[%clk 0:02:57]} 6. Qc2 {[%clk 0:03:02]}  Bg4 {[%clk 0:02:56]} 7. Nbd2 {[%clk 0:03:00]}  e6 {[%clk 0:02:55]} 8. Ne5 {[%clk 0:02:58]}  Nxe5 {[%clk 0:02:55]} 9. Bxe5 {[%clk 0:02:58]}  Nd7 {[%clk 0:02:51]} 10. Bg3 {[%clk 0:02:55]}  Be7 {[%clk 0:02:49]} 11. Bd3 {[%clk 0:02:55]}  Bh5 {[%clk 0:02:46]} 12. O-O {[%clk 0:02:52]}  Bg6 {[%clk 0:02:42]} 13. b3 {[%clk 0:02:52]}  O-O {[%clk 0:02:38]} 14. Rad1 {[%clk 0:02:50]}  Rac8 {[%clk 0:02:36]} 15. Rfe1 {[%clk 0:02:50]}  cxd4 {[%clk 0:02:34]} 16. exd4 {[%clk 0:02:49]}  Bb4 {[%clk 0:02:33]} 17. Bxg6 {[%clk 0:02:46]}  hxg6 {[%clk 0:02:31]} 18. Re3 {[%clk 0:02:39]}  Nf6 {[%clk 0:02:15]} 19. Rc1 {[%clk 0:02:25]}  Ba3 {[%clk 0:02:14]} 20. Rb1 {[%clk 0:02:06]}  Qxd4 {[%clk 0:02:05]} 21. b4 {[%clk 0:02:06]}  Bxb4 {[%clk 0:01:58]} 22. Be5 {[%clk 0:01:41]}  Qc5 {[%clk 0:01:49]} 23. Qa4 {[%clk 0:01:16]}  Ng4 {[%clk 0:01:25]} 24. cxb4 {[%clk 0:00:59]}  Qc2 {[%clk 0:01:21]} 25. Qa3 {[%clk 0:00:46]}  Nxe5 {[%clk 0:01:15]} 26. Qb2 {[%clk 0:00:31]}  Qxb2 {[%clk 0:01:14]} 27. Rxb2 {[%clk 0:00:32]}  Rc1+ {[%clk 0:01:14]} 28. Nf1 {[%clk 0:00:29]}  Nc4 {[%clk 0:01:15]} 0-1

[Event "January 9 Late 2024"]
[Site "https://www.chess.com"]
[Date "2024.01.09"]
[Round "2"]
[White "Kekic, Armin"]
[Black "Koc, Przemyslaw"]
[Result "1-0"]
[Board "173"]
[TimeControl "180+1"]
[WhiteFideId "14401274"]
[BlackFideId "1109081"]
[WhiteElo "2326"]
[BlackElo "2540"]
[WhiteTeam "BIH"]
[BlackTeam "POL"]
[WhiteClock "0:01:11"]
[BlackClock "0:00:59"]

1. e4 {[%clk 0:03:00]}  c5 {[%clk 0:02:59]} 2. Nf3 {[%clk 0:03:00]}  Nf6 {[%clk 0:03:00]} 3. Nc3 {[%clk 0:03:00]}  Nc6 {[%clk 0:02:59]} 4. Bb5 {[%clk 0:02:59]}  Nd4 {[%clk 0:02:58]} 5. Bc4 {[%clk 0:02:59]}  e6 {[%clk 0:02:58]} 6. d3 {[%clk 0:02:58]}  a6 {[%clk 0:02:57]} 7. Nxd4 {[%clk 0:02:55]}  cxd4 {[%clk 0:02:57]} 8. Ne2 {[%clk 0:02:56]}  Bc5 {[%clk 0:02:37]} 9. Bg5 {[%clk 0:02:50]}  h6 {[%clk 0:02:34]} 10. Bh4 {[%clk 0:02:50]}  Qa5+ {[%clk 0:02:29]} 11. Qd2 {[%clk 0:02:38]}  Qxd2+ {[%clk 0:02:27]} 12. Kxd2 {[%clk 0:02:37]}  d6 {[%clk 0:02:28]} 13. h3 {[%clk 0:02:31]}  b5 {[%clk 0:02:23]} 14. Bb3 {[%clk 0:02:31]}  Nd7 {[%clk 0:02:18]} 15. c3 {[%clk 0:02:30]}  dxc3+ {[%clk 0:02:18]} 16. bxc3 {[%clk 0:02:30]}  Bb7 {[%clk 0:02:15]} 17. f3 {[%clk 0:02:30]}  d5 {[%clk 0:02:14]} 18. Rhf1 {[%clk 0:02:24]}  O-O {[%clk 0:02:11]} 19. a4 {[%clk 0:02:21]}  b4 {[%clk 0:02:03]} 20. cxb4 {[%clk 0:02:12]}  Bxb4+ {[%clk 0:02:02]} 21. Ke3 {[%clk 0:02:12]}  g5 {[%clk 0:01:55]} 22. Be1 {[%clk 0:02:06]}  Bc5+ {[%clk 0:01:53]} 23. d4 {[%clk 0:02:06]}  Ba7 {[%clk 0:01:52]} 24. Ba5 {[%clk 0:01:58]}  Rfe8 {[%clk 0:01:46]} 25. exd5 {[%clk 0:01:41]}  Bxd5 {[%clk 0:01:43]} 26. Bxd5 {[%clk 0:01:40]}  exd5+ {[%clk 0:01:44]} 27. Kd3 {[%clk 0:01:41]}  Nb6 {[%clk 0:01:34]} 28. Bxb6 {[%clk 0:01:40]}  Bxb6 {[%clk 0:01:33]} 29. Rfc1 {[%clk 0:01:38]}  Re6 {[%clk 0:01:29]} 30. Ng3 {[%clk 0:01:28]}  Rae8 {[%clk 0:01:20]} 31. Nf5 {[%clk 0:01:25]}  Kh7 {[%clk 0:01:15]} 32. a5 {[%clk 0:01:25]}  Bd8 {[%clk 0:01:10]} 33. Rc8 {[%clk 0:01:17]}  Kg6 {[%clk 0:01:07]} 34. g4 {[%clk 0:01:16]}  Bf6 {[%clk 0:01:04]} 35. Rxe8 {[%clk 0:01:15]}  Rxe8 {[%clk 0:01:04]} 36. Rb1 {[%clk 0:01:13]}  Rb8 {[%clk 0:00:59]} 37. Rxb8 {[%clk 0:01:11]} 1-0

[Event "January 9 Late 2024"]
[Site "https://www.chess.com"]
[Date "2024.01.09"]
[Round "2"]
[White "Gasparyan, David"]
[Black "Lemos, Dawton Almino"]
[Result "1-0"]
[Board "174"]
[TimeControl "180+1"]
[WhiteFideId "13311980"]
[BlackFideId "2146797"]
[WhiteElo "2536"]
[BlackElo "2319"]
[WhiteTeam "USA"]
[BlackTeam "BRA"]
[WhiteClock "0:00:19"]
[BlackClock "0:00:16"]

1. e4 {[%clk 0:03:00]}  e6 {[%clk 0:02:53]} 2. Nc3 {[%clk 0:02:58]}  d5 {[%clk 0:02:43]} 3. Nf3 {[%clk 0:02:59]}  Nf6 {[%clk 0:02:43]} 4. exd5 {[%clk 0:02:49]}  exd5 {[%clk 0:02:35]} 5. d4 {[%clk 0:02:49]}  Nc6 {[%clk 0:02:30]} 6. Ne5 {[%clk 0:02:43]}  Bd6 {[%clk 0:02:25]} 7. Bf4 {[%clk 0:02:35]}  O-O {[%clk 0:02:12]} 8. Be2 {[%clk 0:02:32]}  Re8 {[%clk 0:02:10]} 9. Nxc6 {[%clk 0:02:24]}  bxc6 {[%clk 0:02:09]} 10. Be3 {[%clk 0:02:10]}  Rb8 {[%clk 0:02:01]} 11. Rb1 {[%clk 0:02:08]}  Bf5 {[%clk 0:01:35]} 12. O-O {[%clk 0:02:05]}  Qd7 {[%clk 0:01:29]} 13. Na4 {[%clk 0:01:41]}  Ng4 {[%clk 0:01:12]} 14. Bxg4 {[%clk 0:01:38]}  Bxg4 {[%clk 0:01:12]} 15. Qd2 {[%clk 0:01:35]}  Qf5 {[%clk 0:01:05]} 16. f3 {[%clk 0:01:30]}  Bh5 {[%clk 0:00:55]} 17. Kh1 {[%clk 0:01:20]}  Bg6 {[%clk 0:00:47]} 18. Rbc1 {[%clk 0:01:12]}  Rb4 {[%clk 0:00:28]} 19. b3 {[%clk 0:01:12]}  a5 {[%clk 0:00:22]} 20. c3 {[%clk 0:01:11]}  Rbb8 {[%clk 0:00:21]} 21. Rfe1 {[%clk 0:01:08]}  Re6 {[%clk 0:00:17]} 22. Bg1 {[%clk 0:01:04]}  Rbe8 {[%clk 0:00:17]} 23. Rxe6 {[%clk 0:01:04]}  Rxe6 {[%clk 0:00:17]} 24. Re1 {[%clk 0:01:05]}  h5 {[%clk 0:00:17]} 25. c4 {[%clk 0:01:01]}  Bb4 {[%clk 0:00:16]} 26. Nc3 {[%clk 0:01:01]}  Qd3 {[%clk 0:00:12]} 27. Qxd3 {[%clk 0:00:58]}  Bxd3 {[%clk 0:00:12]} 28. Rxe6 {[%clk 0:00:59]}  fxe6 {[%clk 0:00:13]} 29. Na4 {[%clk 0:00:52]}  dxc4 {[%clk 0:00:13]} 30. bxc4 {[%clk 0:00:49]}  Bxc4 {[%clk 0:00:13]} 31. Be3 {[%clk 0:00:41]}  Bxa2 {[%clk 0:00:12]} 32. Nb2 {[%clk 0:00:41]}  Bd5 {[%clk 0:00:12]} 33. Kg1 {[%clk 0:00:40]}  Bc3 {[%clk 0:00:11]} 34. Na4 {[%clk 0:00:40]}  Bb4 {[%clk 0:00:11]} 35. Bf4 {[%clk 0:00:39]}  Bb3 {[%clk 0:00:11]} 36. Nb2 {[%clk 0:00:40]}  a4 {[%clk 0:00:12]} 37. Bc1 {[%clk 0:00:37]}  a3 {[%clk 0:00:12]} 38. Nd3 {[%clk 0:00:37]}  a2 {[%clk 0:00:10]} 39. Bb2 {[%clk 0:00:37]}  Bd6 {[%clk 0:00:10]} 40. f4 {[%clk 0:00:34]}  Bc4 {[%clk 0:00:10]} 41. Ne5 {[%clk 0:00:34]}  Bd5 {[%clk 0:00:09]} 42. Kf2 {[%clk 0:00:33]}  Kf8 {[%clk 0:00:10]} 43. Ng6+ {[%clk 0:00:28]}  Kf7 {[%clk 0:00:10]} 44. Ne5+ {[%clk 0:00:29]}  Ke8 {[%clk 0:00:10]} 45. g3 {[%clk 0:00:27]}  Kd8 {[%clk 0:00:11]} 46. h3 {[%clk 0:00:25]}  Kc8 {[%clk 0:00:11]} 47. g4 {[%clk 0:00:25]}  hxg4 {[%clk 0:00:12]} 48. hxg4 {[%clk 0:00:26]}  Kb7 {[%clk 0:00:12]} 49. Ke3 {[%clk 0:00:23]}  Ka6 {[%clk 0:00:13]} 50. Nf7 {[%clk 0:00:23]}  Kb5 {[%clk 0:00:12]} 51. Nxd6+ {[%clk 0:00:20]}  cxd6 {[%clk 0:00:13]} 52. f5 {[%clk 0:00:21]}  exf5 {[%clk 0:00:13]} 53. gxf5 {[%clk 0:00:22]}  Kc4 {[%clk 0:00:13]} 54. Kd2 {[%clk 0:00:22]}  Kb3 {[%clk 0:00:14]} 55. Kc1 {[%clk 0:00:23]}  Be4 {[%clk 0:00:14]} 56. d5 {[%clk 0:00:21]}  Bxd5 {[%clk 0:00:13]} 57. Bxg7 {[%clk 0:00:21]}  Bf7 {[%clk 0:00:14]} 58. Ba1 {[%clk 0:00:20]}  d5 {[%clk 0:00:14]} 59. f6 {[%clk 0:00:21]}  c5 {[%clk 0:00:15]} 60. Kd2 {[%clk 0:00:21]}  d4 {[%clk 0:00:15]} 61. Kc1 {[%clk 0:00:20]}  Bg6 {[%clk 0:00:16]} 62. Kd2 {[%clk 0:00:19]}  Kc4 {[%clk 0:00:16]} 63. Kc1 {[%clk 0:00:19]}  Bb1 {[%clk 0:00:16]} 64. f7 {[%clk 0:00:18]}  Kd3 {[%clk 0:00:16]} 65. f8=Q {[%clk 0:00:18]}  c4 {[%clk 0:00:16]} 66. Qf3# {[%clk 0:00:19]} 1-0

[Event "January 9 Late 2024"]
[Site "https://www.chess.com"]
[Date "2024.01.09"]
[Round "2"]
[White "Nita, Lucian"]
[Black "Gurevich, Dmitry"]
[Result "1/2-1/2"]
[Board "176"]
[TimeControl "180+1"]
[WhiteFideId "1206923"]
[BlackFideId "2000407"]
[WhiteElo "2306"]
[BlackElo "2532"]
[WhiteTeam "ROU"]
[BlackTeam "USA"]
[WhiteClock "0:00:27"]
[BlackClock "0:00:06"]

1. e4 {[%clk 0:03:00]}  c5 {[%clk 0:02:59]} 2. Nf3 {[%clk 0:03:00]}  d6 {[%clk 0:02:59]} 3. g3 {[%clk 0:03:00]}  Nc6 {[%clk 0:02:57]} 4. Bg2 {[%clk 0:03:00]}  g6 {[%clk 0:02:57]} 5. O-O {[%clk 0:03:00]}  Bg7 {[%clk 0:02:57]} 6. c3 {[%clk 0:03:01]}  Nf6 {[%clk 0:02:57]} 7. Re1 {[%clk 0:03:01]}  e5 {[%clk 0:02:55]} 8. d4 {[%clk 0:03:00]}  cxd4 {[%clk 0:02:53]} 9. cxd4 {[%clk 0:03:00]}  exd4 {[%clk 0:02:53]} 10. Nxd4 {[%clk 0:02:59]}  Nxd4 {[%clk 0:02:50]} 11. Qxd4 {[%clk 0:02:59]}  O-O {[%clk 0:02:50]} 12. Nc3 {[%clk 0:02:54]}  Re8 {[%clk 0:02:45]} 13. Qd3 {[%clk 0:02:52]}  Be6 {[%clk 0:02:34]} 14. Bg5 {[%clk 0:02:52]}  Qb6 {[%clk 0:02:23]} 15. Qd2 {[%clk 0:02:49]}  Ng4 {[%clk 0:02:15]} 16. Rad1 {[%clk 0:02:42]}  Ne5 {[%clk 0:02:08]} 17. b3 {[%clk 0:02:31]}  Rac8 {[%clk 0:02:02]} 18. Nd5 {[%clk 0:02:30]}  Bxd5 {[%clk 0:01:58]} 19. Qxd5 {[%clk 0:02:24]}  Rc6 {[%clk 0:01:46]} 20. Be3 {[%clk 0:02:11]}  Qc7 {[%clk 0:01:41]} 21. h3 {[%clk 0:02:10]}  a6 {[%clk 0:01:37]} 22. f4 {[%clk 0:02:09]}  Nd7 {[%clk 0:01:36]} 23. e5 {[%clk 0:02:04]}  Bf8 {[%clk 0:01:35]} 24. Qd3 {[%clk 0:01:52]}  Nc5 {[%clk 0:01:29]} 25. Qd2 {[%clk 0:01:33]}  dxe5 {[%clk 0:01:23]} 26. Bxc6 {[%clk 0:01:31]}  Qxc6 {[%clk 0:01:14]} 27. Qd5 {[%clk 0:01:31]}  Qxd5 {[%clk 0:00:58]} 28. Rxd5 {[%clk 0:01:30]}  exf4 {[%clk 0:00:56]} 29. gxf4 {[%clk 0:01:29]}  Ne4 {[%clk 0:00:38]} 30. Bd4 {[%clk 0:01:22]}  f5 {[%clk 0:00:35]} 31. Rd7 {[%clk 0:01:17]}  b5 {[%clk 0:00:33]} 32. Ra7 {[%clk 0:01:09]}  Re6 {[%clk 0:00:30]} 33. Kg2 {[%clk 0:01:04]}  Be7 {[%clk 0:00:27]} 34. Re2 {[%clk 0:01:03]}  Kf7 {[%clk 0:00:24]} 35. Rc2 {[%clk 0:01:02]}  h6 {[%clk 0:00:23]} 36. Rcc7 {[%clk 0:01:01]}  g5 {[%clk 0:00:23]} 37. Be5 {[%clk 0:00:56]}  gxf4 {[%clk 0:00:20]} 38. Bxf4 {[%clk 0:00:56]}  Nf6 {[%clk 0:00:19]} 39. Kf3 {[%clk 0:00:53]}  Nd5 {[%clk 0:00:18]} 40. Rd7 {[%clk 0:00:52]}  Nxf4 {[%clk 0:00:16]} 41. Kxf4 {[%clk 0:00:52]}  Kf6 {[%clk 0:00:16]} 42. Rxe7 {[%clk 0:00:50]}  Rxe7 {[%clk 0:00:15]} 43. Rxa6+ {[%clk 0:00:49]}  Kg7 {[%clk 0:00:10]} 44. Kxf5 {[%clk 0:00:47]}  Re3 {[%clk 0:00:09]} 45. h4 {[%clk 0:00:37]}  Rf3+ {[%clk 0:00:09]} 46. Kg4 {[%clk 0:00:35]}  Rf2 {[%clk 0:00:09]} 47. h5 {[%clk 0:00:35]}  Rg2+ {[%clk 0:00:08]} 48. Kh4 {[%clk 0:00:31]}  Rh2+ {[%clk 0:00:08]} 49. Kg4 {[%clk 0:00:29]}  Rg2+ {[%clk 0:00:08]} 50. Kf4 {[%clk 0:00:29]}  Rg5 {[%clk 0:00:07]} 51. a4 {[%clk 0:00:27]}  Rxh5 {[%clk 0:00:06]} 52. Ra7+ {[%clk 0:00:27]}  Kf6 {[%clk 0:00:05]} 53. a5 {[%clk 0:00:27]}  b4 {[%clk 0:00:05]} 54. Ra6+ {[%clk 0:00:26]}  Kf7 {[%clk 0:00:04]} 55. Kg4 {[%clk 0:00:25]}  Rb5 {[%clk 0:00:03]} 56. Rxh6 {[%clk 0:00:20]}  Rxa5 {[%clk 0:00:02]} 57. Rb6 {[%clk 0:00:20]}  Ra3 {[%clk 0:00:01]} 58. Rxb4 {[%clk 0:00:21]}  Ke6 {[%clk 0:00:02]} 59. Kf4 {[%clk 0:00:21]}  Kd6 {[%clk 0:00:02]} 60. Ke3 {[%clk 0:00:21]}  Kc7 {[%clk 0:00:02]} 61. Kd4 {[%clk 0:00:20]}  Ra6 {[%clk 0:00:02]} 62. Kc4 {[%clk 0:00:21]}  Rc6+ {[%clk 0:00:02]} 63. Kb5 {[%clk 0:00:19]}  Rb6+ {[%clk 0:00:02]} 64. Kc5 {[%clk 0:00:19]}  Rxb4 {[%clk 0:00:03]} 65. Kxb4 {[%clk 0:00:19]}  Kb6 {[%clk 0:00:03]} 66. Kc4 {[%clk 0:00:20]}  Kc6 {[%clk 0:00:03]} 67. b4 {[%clk 0:00:20]}  Kb6 {[%clk 0:00:04]} 68. b5 {[%clk 0:00:20]}  Kb7 {[%clk 0:00:04]} 69. Kc5 {[%clk 0:00:21]}  Kc7 {[%clk 0:00:04]} 70. Kb4 {[%clk 0:00:21]}  Kb6 {[%clk 0:00:04]} 71. Ka4 {[%clk 0:00:21]}  Kb7 {[%clk 0:00:04]} 72. Kb4 {[%clk 0:00:22]}  Kb6 {[%clk 0:00:05]} 73. Kc4 {[%clk 0:00:22]}  Kc7 {[%clk 0:00:05]} 74. Kc5 {[%clk 0:00:23]}  Kb7 {[%clk 0:00:05]} 75. b6 {[%clk 0:00:24]}  Kb8 {[%clk 0:00:05]} 76. Kc6 {[%clk 0:00:24]}  Kc8 {[%clk 0:00:05]} 77. Kd6 {[%clk 0:00:24]}  Kb7 {[%clk 0:00:05]} 78. Kc5 {[%clk 0:00:25]}  Kb8 {[%clk 0:00:05]} 79. Kb5 {[%clk 0:00:26]}  Kb7 {[%clk 0:00:06]} 80. Ka5 {[%clk 0:00:25]}  Kb8 {[%clk 0:00:06]} 81. Ka6 {[%clk 0:00:26]}  Ka8 {[%clk 0:00:06]} 82. Kb5 {[%clk 0:00:26]}  Kb7 {[%clk 0:00:06]} 83. Kc5 {[%clk 0:00:27]} 1/2-1/2

[Event "January 9 Late 2024"]
[Site "https://www.chess.com"]
[Date "2024.01.09"]
[Round "2"]
[White "Bruedigam, Martin"]
[Black "Szente Varga, Fruzsina"]
[Result "1-0"]
[Board "177"]
[TimeControl "180+1"]
[WhiteFideId "24608033"]
[BlackFideId "712264"]
[WhiteElo "2532"]
[BlackElo "2306"]
[WhiteTeam "GER"]
[BlackTeam "HUN"]
[WhiteClock "0:00:20"]
[BlackClock "0:00:13"]

1. e4 {[%clk 0:02:59]}  Nf6 {[%clk 0:02:57]} 2. e5 {[%clk 0:02:58]}  Nd5 {[%clk 0:02:57]} 3. d4 {[%clk 0:02:59]}  d6 {[%clk 0:02:58]} 4. c4 {[%clk 0:02:54]}  Nb6 {[%clk 0:02:54]} 5. exd6 {[%clk 0:02:51]}  exd6 {[%clk 0:02:54]} 6. Nf3 {[%clk 0:02:43]}  Be7 {[%clk 0:02:54]} 7. h3 {[%clk 0:02:43]}  O-O {[%clk 0:02:55]} 8. Bd3 {[%clk 0:02:43]}  Nc6 {[%clk 0:02:54]} 9. O-O {[%clk 0:02:42]}  Bf6 {[%clk 0:02:54]} 10. Be3 {[%clk 0:02:41]}  d5 {[%clk 0:02:45]} 11. c5 {[%clk 0:02:36]}  Nc4 {[%clk 0:02:45]} 12. Bxc4 {[%clk 0:02:35]}  dxc4 {[%clk 0:02:46]} 13. Nc3 {[%clk 0:02:34]}  Bf5 {[%clk 0:02:43]} 14. b3 {[%clk 0:02:12]}  cxb3 {[%clk 0:02:28]} 15. axb3 {[%clk 0:02:11]}  b6 {[%clk 0:02:14]} 16. Rc1 {[%clk 0:01:51]}  Nb4 {[%clk 0:02:08]} 17. Qd2 {[%clk 0:01:39]}  bxc5 {[%clk 0:01:42]} 18. dxc5 {[%clk 0:01:36]}  Qxd2 {[%clk 0:01:42]} 19. Bxd2 {[%clk 0:01:34]}  Nd3 {[%clk 0:01:42]} 20. Rcd1 {[%clk 0:01:21]}  Nxc5 {[%clk 0:01:43]} 21. Nd5 {[%clk 0:01:16]}  Nxb3 {[%clk 0:01:31]} 22. Bb4 {[%clk 0:01:13]}  c5 {[%clk 0:01:28]} 23. Nxf6+ {[%clk 0:01:08]}  gxf6 {[%clk 0:01:28]} 24. Ba3 {[%clk 0:01:07]}  Rfd8 {[%clk 0:01:26]} 25. g4 {[%clk 0:01:02]}  Bd3 {[%clk 0:01:13]} 26. Rfe1 {[%clk 0:01:01]}  c4 {[%clk 0:01:10]} 27. Bb2 {[%clk 0:01:01]}  f5 {[%clk 0:01:07]} 28. Kh2 {[%clk 0:01:00]}  fxg4 {[%clk 0:01:05]} 29. Rg1 {[%clk 0:00:58]}  f5 {[%clk 0:00:57]} 30. hxg4 {[%clk 0:00:57]}  f4 {[%clk 0:00:57]} 31. g5 {[%clk 0:00:53]}  a5 {[%clk 0:00:54]} 32. Rg4 {[%clk 0:00:50]}  a4 {[%clk 0:00:51]} 33. Rxf4 {[%clk 0:00:47]}  a3 {[%clk 0:00:51]} 34. Bf6 {[%clk 0:00:46]}  Rdc8 {[%clk 0:00:33]} 35. g6 {[%clk 0:00:40]}  hxg6 {[%clk 0:00:31]} 36. Kg3 {[%clk 0:00:38]}  a2 {[%clk 0:00:24]} 37. Rh1 {[%clk 0:00:36]}  Kf7 {[%clk 0:00:23]} 38. Ng5+ {[%clk 0:00:31]}  Ke8 {[%clk 0:00:22]} 39. Rh7 {[%clk 0:00:25]}  a1=Q {[%clk 0:00:16]} 40. Re7+ {[%clk 0:00:18]}  Kf8 {[%clk 0:00:13]} 41. Ne6+ {[%clk 0:00:19]}  Kg8 {[%clk 0:00:13]} 42. Rg7+ {[%clk 0:00:20]}  Kh8 {[%clk 0:00:13]} 43. Rh4# {[%clk 0:00:20]} 1-0

[Event "January 9 Late 2024"]
[Site "https://www.chess.com"]
[Date "2024.01.09"]
[Round "2"]
[White "Diaz, Fernando"]
[Black "Kopczynski, Michal"]
[Result "0-1"]
[Board "179"]
[TimeControl "180+1"]
[WhiteFideId "3701255"]
[BlackFideId "1124200"]
[WhiteElo "2301"]
[BlackElo "2530"]
[WhiteTeam "PAR"]
[BlackTeam "POL"]
[WhiteClock "0:00:57"]
[BlackClock "0:01:48"]

1. e4 {[%clk 0:03:00]}  b6 {[%clk 0:02:58]} 2. d4 {[%clk 0:02:59]}  Bb7 {[%clk 0:02:59]} 3. Nc3 {[%clk 0:02:59]}  e6 {[%clk 0:03:00]} 4. Nf3 {[%clk 0:02:43]}  Nf6 {[%clk 0:03:00]} 5. Bg5 {[%clk 0:02:42]}  Be7 {[%clk 0:03:00]} 6. Bd3 {[%clk 0:02:40]}  h6 {[%clk 0:03:00]} 7. Bh4 {[%clk 0:02:37]}  c5 {[%clk 0:02:54]} 8. O-O {[%clk 0:02:34]}  cxd4 {[%clk 0:02:51]} 9. Nxd4 {[%clk 0:02:35]}  Nc6 {[%clk 0:02:50]} 10. Nf3 {[%clk 0:02:29]}  O-O {[%clk 0:02:39]} 11. e5 {[%clk 0:02:29]}  Ng4 {[%clk 0:02:30]} 12. Bxe7 {[%clk 0:02:30]}  Qxe7 {[%clk 0:02:30]} 13. Qe2 {[%clk 0:02:18]}  f6 {[%clk 0:02:19]} 14. Qe4 {[%clk 0:01:52]}  f5 {[%clk 0:02:16]} 15. Qe2 {[%clk 0:01:51]}  d6 {[%clk 0:01:52]} 16. exd6 {[%clk 0:01:44]}  Qxd6 {[%clk 0:01:53]} 17. Bc4 {[%clk 0:01:42]}  Nd4 {[%clk 0:01:49]} 18. Bxe6+ {[%clk 0:00:57]}  Kh8 {[%clk 0:01:48]} 0-1

[Event "January 9 Late 2024"]
[Site "https://www.chess.com"]
[Date "2024.01.09"]
[Round "2"]
[White "Khater, Sherif"]
[Black "Slavin, Alexey"]
[Result "1-0"]
[Board "182"]
[TimeControl "180+1"]
[WhiteFideId "2034280"]
[BlackFideId "24104388"]
[WhiteElo "2526"]
[BlackElo "2292"]
[WhiteTeam "USA"]
[BlackTeam "RUS"]
[WhiteClock "0:00:16"]
[BlackClock "0:00:00"]

1. b4 {[%clk 0:03:00]}  Nc6 {[%clk 0:02:59]} 2. b5 {[%clk 0:03:00]}  Ne5 {[%clk 0:02:59]} 3. d4 {[%clk 0:02:59]}  Ng6 {[%clk 0:02:59]} 4. e4 {[%clk 0:02:59]}  d6 {[%clk 0:02:57]} 5. Nf3 {[%clk 0:02:55]}  Nf6 {[%clk 0:02:57]} 6. Nbd2 {[%clk 0:02:53]}  e5 {[%clk 0:02:54]} 7. Bb2 {[%clk 0:02:41]}  exd4 {[%clk 0:02:54]} 8. Nxd4 {[%clk 0:02:42]}  Be7 {[%clk 0:02:54]} 9. g3 {[%clk 0:02:35]}  O-O {[%clk 0:02:54]} 10. Bg2 {[%clk 0:02:35]}  a6 {[%clk 0:02:52]} 11. a4 {[%clk 0:02:34]}  axb5 {[%clk 0:02:52]} 12. axb5 {[%clk 0:02:35]}  Rxa1 {[%clk 0:02:52]} 13. Qxa1 {[%clk 0:02:36]}  Ng4 {[%clk 0:02:46]} 14. O-O {[%clk 0:02:31]}  Bf6 {[%clk 0:02:44]} 15. h3 {[%clk 0:02:27]}  N4e5 {[%clk 0:02:44]} 16. f4 {[%clk 0:02:18]}  Nd7 {[%clk 0:02:43]} 17. Nf5 {[%clk 0:02:07]}  Bxb2 {[%clk 0:02:32]} 18. Qxb2 {[%clk 0:02:08]}  f6 {[%clk 0:02:27]} 19. Nb3 {[%clk 0:01:50]}  Re8 {[%clk 0:02:15]} 20. Nbd4 {[%clk 0:01:46]}  Nc5 {[%clk 0:02:12]} 21. Re1 {[%clk 0:01:33]}  Bd7 {[%clk 0:01:40]} 22. Qa2+ {[%clk 0:01:30]}  Kh8 {[%clk 0:01:38]} 23. Qf7 {[%clk 0:01:25]}  Rg8 {[%clk 0:01:28]} 24. h4 {[%clk 0:01:13]}  Qe8 {[%clk 0:01:23]} 25. Qa2 {[%clk 0:01:03]}  Ne7 {[%clk 0:01:19]} 26. Nxe7 {[%clk 0:00:59]}  Qxe7 {[%clk 0:01:19]} 27. Qd5 {[%clk 0:00:55]}  Re8 {[%clk 0:01:17]} 28. Nf5 {[%clk 0:00:53]}  Bxf5 {[%clk 0:01:16]} 29. Qxf5 {[%clk 0:00:54]}  Qd7 {[%clk 0:01:09]} 30. Qxd7 {[%clk 0:00:50]}  Nxd7 {[%clk 0:01:09]} 31. e5 {[%clk 0:00:44]}  fxe5 {[%clk 0:01:03]} 32. Bxb7 {[%clk 0:00:45]}  Nc5 {[%clk 0:01:03]} 33. Bc6 {[%clk 0:00:44]}  Re7 {[%clk 0:00:59]} 34. fxe5 {[%clk 0:00:38]}  Rxe5 {[%clk 0:00:58]} 35. Rf1 {[%clk 0:00:38]}  Kg8 {[%clk 0:00:49]} 36. c4 {[%clk 0:00:38]}  h6 {[%clk 0:00:45]} 37. Bd5+ {[%clk 0:00:38]}  Kh7 {[%clk 0:00:45]} 38. Rf7 {[%clk 0:00:38]}  Nd3 {[%clk 0:00:35]} 39. Rxc7 {[%clk 0:00:35]}  Re1+ {[%clk 0:00:34]} 40. Kg2 {[%clk 0:00:34]}  Re2+ {[%clk 0:00:34]} 41. Kf3 {[%clk 0:00:32]}  Re1 {[%clk 0:00:28]} 42. h5 {[%clk 0:00:27]}  Ne5+ {[%clk 0:00:28]} 43. Kf2 {[%clk 0:00:24]}  Nd3+ {[%clk 0:00:23]} 44. Kg2 {[%clk 0:00:23]}  Re5 {[%clk 0:00:21]} 45. b6 {[%clk 0:00:22]}  Nb4 {[%clk 0:00:09]} 46. b7 {[%clk 0:00:19]}  Na6 {[%clk 0:00:09]} 47. b8=Q {[%clk 0:00:18]}  Nxb8 {[%clk 0:00:09]} 48. Kf3 {[%clk 0:00:14]}  Na6 {[%clk 0:00:08]} 49. Be4+ {[%clk 0:00:15]}  Kg8 {[%clk 0:00:08]} 50. Bg6 {[%clk 0:00:15]}  Kf8 {[%clk 0:00:08]} 51. Rf7+ {[%clk 0:00:14]}  Kg8 {[%clk 0:00:08]} 52. Ra7 {[%clk 0:00:14]}  Nb8 {[%clk 0:00:03]} 53. Ra8 {[%clk 0:00:12]}  Kf8 {[%clk 0:00:03]} 54. Rxb8+ {[%clk 0:00:12]}  Ke7 {[%clk 0:00:04]} 55. Re8+ {[%clk 0:00:12]}  Kf6 {[%clk 0:00:04]} 56. Rxe5 {[%clk 0:00:13]}  Kxe5 {[%clk 0:00:04]} 57. Kg4 {[%clk 0:00:13]}  Kd4 {[%clk 0:00:05]} 58. Kf5 {[%clk 0:00:13]}  Kxc4 {[%clk 0:00:05]} 59. Ke6 {[%clk 0:00:14]}  d5 {[%clk 0:00:05]} 60. Kf7 {[%clk 0:00:14]}  d4 {[%clk 0:00:06]} 61. Kxg7 {[%clk 0:00:15]}  d3 {[%clk 0:00:06]} 62. Bxd3+ {[%clk 0:00:15]}  Kxd3 {[%clk 0:00:00]} 63. Kxh6 {[%clk 0:00:16]} 1-0